[Event "World Junior U20 Girls 2018"]
[Site "Gebze"]
[Date "2018.09.07"]
[Round "4"]
[White "Sliwicka, Alicja"]
[Black "Gorti, Akshita"]
[Result "1-0"]
[ECO "C17"]
[WhiteElo "2272"]
[BlackElo "2315"]
[Annotator "ChessBase"]
[PlyCount "89"]
[EventDate "2018.09.05"]
[EventType "swiss"]
[EventCountry "TUR"]
[SourceTitle "playchess.com"]
[Source "ChessBase"]
[SourceQuality "1"]
[TimeControl "40/5400+30:1800+30"]

1. e4 {[%emt 0:00:30]} e6 {[%emt 0:00:30]} 2. d4 {[%emt 0:00:00]} d5 {[%emt 0:00:30]} 3. Nc3 {[%emt 0:00:00]} Bb4 {[%emt 0:00:30]} 4. e5 {[%emt 0:00:00]} c5 {[%emt 0:00:00]} 5. Bd2 {[%emt 0:00:00]} Nh6 {[%emt 0:00:00]} 6. a3 {[%emt 0:00:30]} Bxc3 {[%emt 0:01:30]} 7. Bxc3 {[%emt 0:00:00]} b6 {[%emt 0:00:30]} 8. Bb5+ {[%emt 0:00:00]} Bd7 {[%emt 0:00:30]} 9. Bd3 {[%emt 0:00:00]} cxd4 {[%emt 0:05:30]} 10. Bxd4 {[%emt 0:05:00]} Nc6 {[%emt 0:00:30]} 11. Nf3 {[%emt 0:00:00]} Nxd4 {[%emt 0:09:30]} 12. Nxd4 {[%emt 0:00:00]} O-O {[%emt 0:00:30]} 13. O-O {[%emt 0:00:30]} f6 {[%emt 0:00:30]} 14. Qe2 {[%emt 0:08:30]} fxe5 {[%emt 0:18:30]} 15. Qxe5 {[%emt 0:00:30]} Ng4 {[%emt 0:05:30]} 16. Qd6 {[%emt 0:07:30]} Qb8 {[%emt 0:09:30]} 17. Qxb8 {[%emt 0:00:30]} Raxb8 {[%emt 0:00:00]} 18. f4 {[%emt 0:01:30]} Ne3 {[%emt 0:07:00]} 19. Rfe1 {[%emt 0:11:30]} Nc4 {[%emt 0:05:30]} 20. b3 {[%emt 0:02:30]} Na5 {[%emt 0:03:30]} 21. Nxe6 {[%emt 0:03:30]} Bxe6 {[%emt 0:01:30]} 22. Rxe6 {[%emt 0:00:30]} Rxf4 {[%emt 0:00:30]} 23. Rd6 {[%emt 0:02:30]} Rd4 {[%emt 0:05:30]} 24. b4 {[%emt 0:11:30]} Nb7 {[%emt 0:03:30]} 25. Rd7 {[%emt 0:05:30]} Nd8 {[%emt 0:03:03]} 26. Rxd5 {[%emt 0:05:30]} Rxd5 {[%emt 0:01:48]} 27. Bc4 {[%emt 0:00:30]} Kf8 {[%emt 0:00:11]} 28. Bxd5 {[%emt 0:00:00]} Ke7 {[%emt 0:00:27]} 29. Kf2 {[%emt 0:02:00]} Rc8 {[%emt 0:05:02]} 30. c4 {[%emt 0:00:30]} Nc6 {[%emt 0:00:41]} 31. Re1+ {[%emt 0:01:30]} Kf8 {[%emt 0:00:51]} 32. Re3 {[%emt 0:07:30]} Ne7 {[%emt 0:01:12]} 33. Be6 {[%emt 0:00:30]} Rc6 {[%emt 0:00:24]} 34. Ke2 {[%emt 0:00:30]} Rd6 {[%emt 0:02:10]} 35. Bh3 {[%emt 0:02:30]} Nc6 {[%emt 0:05:00]} 36. Rd3 {[%emt 0:03:30]} Rf6 {[%emt 0:04:24]} 37. Kd2 {[%emt 0:04:29]} Ne5 {[%emt 0:00:38]} 38. Rd4 {[%emt 0:01:02]} Rf2+ {[%emt 0:01:15]} 39. Kc3 {[%emt 0:01:53]} Ke7 {[%emt 0:00:36]} 40. c5 {[%emt 0:00:00]} bxc5 {[%emt 0:01:02]} 41. bxc5 {[%emt 0:08:06]} g5 {[%emt 0:08:46]} 42. Re4 {[%emt 0:07:30]} Kf6 {[%emt 0:01:30]} 43. c6 {[%emt 0:03:30]} Rf1 {[%emt 0:00:30]} 44. Kc2 {[%emt 0:02:30]} Rf2+ {[%emt 0:03:26]} 45. Kb3 {[%emt 0:00:30]} 1-0

[Event "World Junior U20 Girls 2018"]
[Site "Gebze"]
[Date "2018.09.07"]
[Round "4"]
[White "Diakonova, Ekaterina"]
[Black "Dwilewicz, Katarzyna"]
[Result "0-1"]
[ECO "C47"]
[WhiteElo "2243"]
[BlackElo "2081"]
[Annotator "NA"]
[PlyCount "78"]
[EventDate "2018.09.05"]
[EventType "swiss"]
[EventCountry "TUR"]
[SourceTitle "playchess.com"]
[Source "ChessBase"]
[SourceQuality "1"]
[TimeControl "40/5400+30:1800+30"]

1. e4 e5 2. Nc3 Nf6 3. g3 d5 4. exd5 Nxd5 5. Bg2 Nxc3 6. bxc3 Nc6 7. d3 Bc5 8. Nf3 O-O 9. O-O Bg4 {C47: Scotch Four Knights and Four Knights with 4 g3} 10. Re1 (10. h3 Bh5 11. Rb1 Bb6 12. g4 Bg6 13. Bg5 f6 14. Be3 e4 15. Nh4 exd3 16. Nxg6 hxg6 17. cxd3 Qd7 18. d4 {½-½ (84) Mamedov,R (2688)-Jakovenko,D (2704) Doha 2016}) 10... Re8 11. Be3 Bb6 12. Qc1 Qf6 $146 ({Predecessor:} 12... h6 13. Nd2 Be6 14. Nb3 Qd6 15. c4 Bxe3 16. Qxe3 Rad8 17. Qc5 {0-1 (45) Zwanzger,J (2222)-Grimberg,B (2307) Bayern 2016}) 13. Nd2 Qg6 14. Nc4 Bxe3 15. Nxe3 Be6 16. Rb1 Nd8 17. Bxb7 Nxb7 18. Rxb7 Bh3 19. Rxc7 f5 20. Qd1 Qd6 $16 21. Rc4 f4 22. Ng2 Qd5 23. Rce4 Bf5 24. Nxf4 Qxa2 25. Rxe5 Rxe5 26. Rxe5 Rb8 27. Qf3 Bd7 28. c4 Qa1+ 29. Re1 Qxe1+ 30. Kg2 Qe5 31. c3 Qf5 32. h4 a5 33. d4 Re8 34. Qd1 a4 35. c5 Qe4+ 36. Kh2 Rb8 37. Qh5 Rb1 38. f3 Qc2+ 39. Ng2 Qf5 0-1

[Event "World Junior U20 Girls 2018"]
[Site "Gebze"]
[Date "2018.09.07"]
[Round "4"]
[White "Maltsevskaya, Aleksandra"]
[Black "Tokhirjonova, Gulrukhbegim"]
[Result "1-0"]
[ECO "E11"]
[WhiteElo "2234"]
[BlackElo "2369"]
[Annotator "NA"]
[PlyCount "51"]
[EventDate "2018.09.05"]
[EventType "swiss"]
[EventCountry "TUR"]
[SourceTitle "playchess.com"]
[Source "ChessBase"]
[SourceQuality "1"]
[TimeControl "40/5400+30:1800+30"]

1. d4 {[%emt 0:00:30]} Nf6 {[%emt 0:04:30]} 2. c4 {[%emt 0:00:00]} e6 {[%emt 0:00:30]} 3. Nf3 {[%emt 0:00:00]} Bb4+ {[%emt 0:02:30]} 4. Nbd2 {[%emt 0:02:30]} O-O {[%emt 0:02:30]} 5. a3 {[%emt 0:00:30]} Be7 {[%emt 0:00:00]} 6. e4 {[%emt 0:00:30]} d6 {[%emt 0:02:00]} 7. Qc2 {[%emt 0:00:30]} Nbd7 {[%emt 0:02:30]} 8. b3 {[%emt 0:00:30]} c6 {[%emt 0:03:30]} 9. Bb2 {[%emt 0:00:00]} Qc7 {[%emt 0:00:30]} 10. g3 {[%emt 0:00:00]} e5 {[%emt 0:01:30]} 11. Bg2 {[%emt 0:00:30]} a5 {[%emt 0:00:30]} 12. O-O {[%emt 0:00:30]} Re8 {[%emt 0:00:30]} 13. c5 {[%emt 0:08:30]} exd4 {[%emt 0:12:30]} 14. cxd6 {[%emt 0:08:00]} Bxd6 {[%emt 0:00:30]} 15. Nxd4 {[%emt 0:02:30]} Bf8 {[%emt 0:05:30]} 16. Rae1 {[%emt 0:04:30]} Nc5 {[%emt 0:04:30]} 17. e5 $16 {[%emt 0:03:30]} Nfd7 {[%emt 0:06:30]} 18. Nc4 {[%emt 0:07:30]} Ne6 {[%emt 0:09:30]} 19. Nxe6 {[%emt 0:11:30]} Rxe6 {[%emt 0:01:30]} 20. f4 {[%emt 0:00:00]} b5 {[%emt 0:13:30]} 21. f5 {[%emt 0:04:00]} Rh6 {[%emt 0:00:30]} 22. Nd6 {[%emt 0:01:30]} Bxd6 {[%emt 0:11:38]} 23. exd6 {[%emt 0:00:30]} Rxd6 {[%emt 0:00:06]} 24. Re8+ {[%emt 0:03:30]} Nf8 {[%emt 0:00:08]} 25. Qc5 {[%emt 0:00:30]} f6 {[%emt 0:14:03]} 26. Bd5+ {[%emt 0:00:30]} 1-0

[Event "World Junior U20 Girls 2018"]
[Site "Gebze"]
[Date "2018.09.07"]
[Round "4"]
[White "Mahalakshmi, M."]
[Black "Li, Yunshan"]
[Result "1-0"]
[ECO "D78"]
[WhiteElo "2213"]
[BlackElo "2060"]
[Annotator "NA"]
[PlyCount "75"]
[EventDate "2018.09.05"]
[EventType "swiss"]
[EventCountry "TUR"]
[SourceTitle "playchess.com"]
[Source "ChessBase"]
[SourceQuality "1"]
[TimeControl "40/5400+30:1800+30"]

1. Nf3 {[%emt 0:00:30]} Nf6 {[%emt 0:00:30]} 2. g3 {[%emt 0:00:00]} g6 {[%emt 0:00:30]} 3. Bg2 {[%emt 0:00:00]} Bg7 {[%emt 0:00:00]} 4. d4 {[%emt 0:00:30]} d5 {[%emt 0:00:00]} 5. O-O {[%emt 0:00:30]} O-O {[%emt 0:00:30]} 6. c4 {[%emt 0:00:00]} c6 {[%emt 0:00:00]} 7. Qb3 {[%emt 0:00:00]} Qb6 {[%emt 0:04:00]} 8. Nc3 {[%emt 0:00:30]} Qxb3 {[%emt 0:06:30]} 9. axb3 {[%emt 0:00:00]} h6 {[%emt 0:00:30] D78: Fianchetto Grünfeld: 6 0-0 c6} (9... Bf5 10. h3 h5 11. Bf4 Nbd7 12. cxd5 cxd5 13. Rfc1 Rfc8 14. Ne5 Nb6 15. Kh2 a6 16. Bg5 Bf8 17. Be3 {½-½ (41) Kamsky,G (2732)-Van Wely,L (2692) Wijk aan Zee 2012}) 10. Bf4 {[%emt 0:08:00]} Be6 {[%emt 0:01:30]} 11. Ne5 {[%emt 0:07:30]} Rd8 {[%emt 0:04:30]} 12. Rfd1 {[%emt 0:02:30]} Nbd7 {[%emt 0:00:30]} 13. Nxd7 {[%emt 0:07:30]} Rxd7 {[%emt 0:00:30] [#]} 14. Na4 $1 {[%emt 0:01:30]} Rdd8 $1 {[%emt 0:05:30]} 15. Nc5 {[%emt 0:01:30]} Bc8 {[%emt 0:02:30]} 16. Bc7 {[%emt 0:05:30]} Re8 {[%emt 0:03:30]} 17. Kf1 $146 {[%emt 0:09:30]} ({Predecessor:} 17. Be5) 17... e6 {[%emt 0:02:30]} 18. Ra2 {[%emt 0:05:30]} Nd7 {[%emt 0:05:30]} 19. Na4 {[%emt 0:00:30]} Bf6 {[%emt 0:00:30]} 20. e4 {[%emt 0:06:30]} dxe4 {[%emt 0:04:30]} 21. Bxe4 $14 {[%emt 0:00:00]} Bd8 {[%emt 0:00:30]} 22. Bd6 {[%emt 0:03:00]} Be7 {[%emt 0:02:30]} 23. Bc7 {[%emt 0:02:30]} Bd8 {[%emt 0:00:30]} 24. Bd6 {[%emt 0:01:30]} Be7 {[%emt 0:00:30]} 25. Bxe7 {[%emt 0:01:30]} Rxe7 {[%emt 0:00:30]} 26. Bg2 {[%emt 0:01:30]} Rb8 {[%emt 0:01:30]} 27. Nc3 {[%emt 0:04:30]} a6 {[%emt 0:02:30]} 28. d5 {[%emt 0:02:30]} exd5 {[%emt 0:00:30]} 29. cxd5 {[%emt 0:00:30]} cxd5 {[%emt 0:03:30]} 30. Nxd5 {[%emt 0:01:30]} Re8 {[%emt 0:00:30]} 31. Raa1 {[%emt 0:04:30]} Kg7 {[%emt 0:03:30]} 32. Nc7 {[%emt 0:03:30]} Re7 {[%emt 0:02:30]} 33. Rac1 {[%emt 0:01:36]} b5 {[%emt 0:13:30]} 34. Rd6 {[%emt 0:06:11]} Nb6 {[%emt 0:12:57]} 35. Rxb6 {[%emt 0:01:44]} Rxb6 {[%emt 0:01:13]} 36. Nd5 {[%emt 0:00:08]} Be6 {[%emt 0:07:04]} 37. Nxe7 {[%emt 0:03:06]} Bxb3 {[%emt 0:00:17]} 38. Rc6 {[%emt 0:01:06]} 1-0

[Event "World Junior U20 Girls 2018"]
[Site "Gebze"]
[Date "2018.09.07"]
[Round "4"]
[White "Kubicka, Anna"]
[Black "Kyrkjebo, Marte B"]
[Result "1-0"]
[ECO "C99"]
[WhiteElo "2204"]
[BlackElo "1935"]
[Annotator "NA"]
[PlyCount "75"]
[EventDate "2018.09.05"]
[EventType "swiss"]
[EventCountry "TUR"]
[SourceTitle "playchess.com"]
[Source "ChessBase"]
[SourceQuality "1"]
[TimeControl "40/5400+30:1800+30"]

1. e4 {[%emt 0:00:30]} e5 {[%emt 0:00:30]} 2. Nf3 {[%emt 0:00:30]} Nc6 {[%emt 0:00:00]} 3. Bb5 {[%emt 0:00:00]} a6 {[%emt 0:00:00]} 4. Ba4 {[%emt 0:00:00]} Nf6 {[%emt 0:00:00]} 5. O-O {[%emt 0:00:30]} b5 {[%emt 0:00:00]} 6. Bb3 {[%emt 0:00:00]} Be7 {[%emt 0:00:30]} 7. Re1 {[%emt 0:00:00]} O-O {[%emt 0:00:30]} 8. h3 {[%emt 0:00:30]} d6 {[%emt 0:00:30]} 9. c3 {[%emt 0:00:00]} Na5 {[%emt 0:00:00]} 10. Bc2 {[%emt 0:00:00]} c5 {[%emt 0:01:00]} 11. d4 {[%emt 0:00:00]} Qc7 {[%emt 0:00:30]} 12. Nbd2 {[%emt 0:00:00]} cxd4 {[%emt 0:01:30]} 13. cxd4 {[%emt 0:00:30]} Rd8 {[%emt 0:00:00]} 14. Nf1 {[%emt 0:02:30]} exd4 {[%emt 0:03:00]} 15. Nxd4 {[%emt 0:00:30]} d5 {[%emt 0:00:30]} 16. e5 {[%emt 0:04:30]} Ne4 {[%emt 0:00:30]} 17. Bf4 {[%emt 0:05:30]} Qb6 {[%emt 0:09:30]} 18. b3 {[%emt 0:12:30]} Bb4 $11 {[%emt 0:07:30]} 19. Re3 {[%emt 0:10:30]} Bc5 {[%emt 0:12:30]} 20. Nf3 {[%emt 0:12:30]} Bxe3 {[%emt 0:13:30]} 21. Bxe3 {[%emt 0:00:00]} Qc7 {[%emt 0:01:30]} 22. Rc1 {[%emt 0:01:00]} Nc6 {[%emt 0:03:30]} 23. Nd4 {[%emt 0:05:30]} Bb7 {[%emt 0:19:30]} 24. f3 {[%emt 0:08:30]} Nc3 {[%emt 0:03:30]} 25. Qd3 {[%emt 0:02:30]} Nxd4 {[%emt 0:02:30]} 26. Bxd4 {[%emt 0:03:30]} b4 {[%emt 0:00:43]} 27. Qxh7+ {[%emt 0:00:30]} Kf8 {[%emt 0:00:17]} 28. Ng3 {[%emt 0:03:30]} Bc8 {[%emt 0:06:42]} 29. Qh8+ {[%emt 0:01:30]} Ke7 {[%emt 0:00:30]} 30. Qxg7 {[%emt 0:00:30]} Be6 {[%emt 0:00:30]} 31. Bf5 {[%emt 0:00:30]} Qc6 {[%emt 0:02:12]} 32. Qf6+ {[%emt 0:06:30]} Ke8 {[%emt 0:03:44]} 33. Kh2 {[%emt 0:00:30]} Rdc8 {[%emt 0:03:17]} 34. Qg7 {[%emt 0:06:32]} Kd8 {[%emt 0:00:54]} 35. Qf8+ {[%emt 0:00:26]} Qe8 {[%emt 0:02:15]} 36. Bb6+ {[%emt 0:00:14]} Rc7 {[%emt 0:01:18]} 37. Qd6+ {[%emt 0:00:34]} Qd7 {[%emt 0:00:40]} 38. Bxc7+ {[%emt 0:00:07]} 1-0

[Event "World Junior U20 Girls 2018"]
[Site "Gebze"]
[Date "2018.09.07"]
[Round "4"]
[White "Chu, Ruotong"]
[Black "Potapova, Margarita"]
[Result "1-0"]
[ECO "E03"]
[WhiteElo "2199"]
[BlackElo "2277"]
[Annotator "NA"]
[PlyCount "83"]
[EventDate "2018.09.05"]
[EventType "swiss"]
[EventCountry "TUR"]
[SourceTitle "playchess.com"]
[Source "ChessBase"]
[SourceQuality "1"]
[TimeControl "40/5400+30:1800+30"]

1. d4 {[%emt 0:03:30]} Nf6 {[%emt 0:00:30]} 2. c4 {[%emt 0:01:30]} e6 {[%emt 0:00:30]} 3. g3 {[%emt 0:05:30]} d5 {[%emt 0:00:30]} 4. Bg2 {[%emt 0:00:00]} dxc4 {[%emt 0:00:00]} 5. Qa4+ {[%emt 0:01:00]} Nbd7 {[%emt 0:00:00]} 6. Qxc4 {[%emt 0:02:30]} a6 {[%emt 0:01:30]} 7. Qc2 {[%emt 0:04:30]} c5 {[%emt 0:03:30]} 8. Nf3 {[%emt 0:01:30]} cxd4 {[%emt 0:11:30]} 9. Nxd4 {[%emt 0:01:30]} Nc5 {[%emt 0:02:30]} 10. Nb3 {[%emt 0:02:30]} Nxb3 {[%emt 0:07:30]} 11. Qxb3 {[%emt 0:00:30]} Qc7 {[%emt 0:04:30]} 12. O-O {[%emt 0:02:30]} Bc5 {[%emt 0:00:30]} 13. Nc3 {[%emt 0:06:30]} O-O {[%emt 0:01:30]} 14. Bf4 {[%emt 0:11:30]} Bd6 {[%emt 0:10:30]} 15. Be3 $14 {[%emt 0:10:30]} Qe7 {[%emt 0:06:30]} 16. a4 {[%emt 0:13:30]} Bd7 {[%emt 0:17:30]} 17. Qxb7 {[%emt 0:02:30]} Rfb8 {[%emt 0:00:30]} 18. Qf3 {[%emt 0:02:30]} Rc8 {[%emt 0:02:30]} 19. Bg5 {[%emt 0:11:04]} Rab8 {[%emt 0:02:30]} 20. Qd3 {[%emt 0:04:09]} Rxb2 {[%emt 0:05:30]} 21. Ne4 {[%emt 0:01:10]} Be5 {[%emt 0:00:30]} 22. f4 {[%emt 0:01:35]} Bc3 {[%emt 0:03:13]} 23. Rac1 {[%emt 0:02:30]} Rb3 {[%emt 0:01:19]} 24. Bxf6 {[%emt 0:00:39]} gxf6 {[%emt 0:00:53]} 25. Rxc3 {[%emt 0:01:19]} Rcxc3 {[%emt 0:00:51]} 26. Nxc3 {[%emt 0:00:04]} Qc5+ {[%emt 0:02:40]} 27. Kh1 {[%emt 0:00:04]} Bc6 {[%emt 0:00:00]} 28. Ne4 {[%emt 0:01:27]} Qb6 {[%emt 0:00:37]} 29. Qc2 {[%emt 0:02:15]} Kg7 {[%emt 0:00:33]} 30. a5 {[%emt 0:02:39]} Qb7 {[%emt 0:01:01]} 31. Rc1 {[%emt 0:00:55]} Bd5 {[%emt 0:03:20]} 32. Bf3 {[%emt 0:00:03]} Re3 {[%emt 0:02:45]} 33. Nc5 {[%emt 0:01:44]} Qa8 {[%emt 0:05:54]} 34. Bxd5 {[%emt 0:00:25]} Qxd5+ {[%emt 0:00:28]} 35. Kg1 {[%emt 0:00:07]} Qd4 {[%emt 0:00:00]} 36. Kf1 {[%emt 0:00:19]} Qd5 {[%emt 0:00:48]} 37. Kf2 {[%emt 0:00:58]} Ra3 {[%emt 0:01:21]} 38. Qc4 {[%emt 0:00:48]} Qd2 {[%emt 0:00:16]} 39. Ne4 {[%emt 0:00:41]} Qe3+ {[%emt 0:01:02]} 40. Kg2 {[%emt 0:00:00]} f5 {[%emt 0:00:00]} 41. Rc3 {[%emt 0:02:35]} Ra4 {[%emt 0:04:59]} 42. Qxa4 {[%emt 0:00:00]} 1-0

[Event "World Junior U20 Girls 2018"]
[Site "Gebze"]
[Date "2018.09.07"]
[Round "4"]
[White "Pychova, Nela"]
[Black "Duran, Esma Doga"]
[Result "1-0"]
[ECO "D10"]
[WhiteElo "2173"]
[BlackElo "1825"]
[Annotator "NA"]
[PlyCount "72"]
[EventDate "2018.09.05"]
[EventType "swiss"]
[EventCountry "TUR"]
[SourceTitle "playchess.com"]
[Source "ChessBase"]
[SourceQuality "1"]
[TimeControl "40/5400+30:1800+30"]

1. c4 {[%emt 0:00:30]} c6 {[%emt 0:01:30]} 2. Nc3 {[%emt 0:06:30]} d5 {[%emt 0:02:30]} 3. cxd5 {[%emt 0:00:30]} cxd5 {[%emt 0:00:30]} 4. d4 {[%emt 0:00:30]} Nc6 {[%emt 0:00:30]} 5. Bf4 {[%emt 0:00:30]} Nf6 {[%emt 0:00:30]} 6. e3 {[%emt 0:00:30]} Bg4 {[%emt 0:00:30]} 7. f3 {[%emt 0:00:30]} Bf5 {[%emt 0:19:30]} 8. g4 {[%emt 0:10:30]} Bg6 {[%emt 0:02:30]} 9. h4 {[%emt 0:00:30]} h6 {[%emt 0:00:30]} 10. Bd3 $11 {[%emt 0:10:30]} Bxd3 {[%emt 0:01:30]} 11. Qxd3 {[%emt 0:00:30]} e6 {[%emt 0:00:00]} 12. Nge2 {[%emt 0:03:30]} Bd6 {[%emt 0:01:00]} 13. Kf2 {[%emt 0:02:30]} Ke7 {[%emt 0:17:30]} 14. Nb5 {[%emt 0:09:30]} Bxf4 {[%emt 0:01:30]} 15. Nxf4 {[%emt 0:01:30]} a6 {[%emt 0:00:00]} 16. Qa3+ {[%emt 0:00:30]} Kd7 {[%emt 0:01:00]} 17. Qd6+ {[%emt 0:09:30]} Kc8 {[%emt 0:02:30]} 18. Qxd8+ {[%emt 0:00:30]} Kxd8 {[%emt 0:01:30]} 19. Nc3 {[%emt 0:02:30]} Ke7 {[%emt 0:02:30]} 20. Rac1 {[%emt 0:01:30]} g5 {[%emt 0:04:30]} 21. Nd3 {[%emt 0:04:30]} Nd7 {[%emt 0:02:30]} 22. Na4 {[%emt 0:05:30]} Kd6 {[%emt 0:02:30]} 23. Kg3 {[%emt 0:05:30]} f6 {[%emt 0:03:30]} 24. Rh2 {[%emt 0:02:30]} e5 {[%emt 0:20:34]} 25. Nac5 {[%emt 0:07:26]} Nxc5 {[%emt 0:03:23]} 26. dxc5+ {[%emt 0:00:59]} Ke6 {[%emt 0:00:17]} 27. Rch1 {[%emt 0:01:06]} Rhd8 {[%emt 0:02:06]} 28. hxg5 {[%emt 0:00:53]} hxg5 {[%emt 0:00:01]} 29. Rh7 {[%emt 0:00:58]} Rd7 {[%emt 0:00:18]} 30. Rxd7 {[%emt 0:02:56]} Kxd7 {[%emt 0:00:30]} 31. Rh7+ {[%emt 0:00:30]} Ne7 {[%emt 0:00:30]} 32. b4 {[%emt 0:00:21]} Ke6 {[%emt 0:02:17]} 33. a4 {[%emt 0:04:37]} Rd8 {[%emt 0:03:43]} 34. c6 {[%emt 0:04:15]} b6 {[%emt 0:00:39]} 35. a5 {[%emt 0:00:26]} e4 {[%emt 0:02:06]} 36. c7 {[%emt 0:01:48]} Re8 {[%emt 0:01:06]} 1-0

[Event "World Junior U20 Girls 2018"]
[Site "Gebze"]
[Date "2018.09.07"]
[Round "4"]
[White "Song, Yuxin"]
[Black "Nomin-Erdene, Davaademberel"]
[Result "1-0"]
[ECO "A80"]
[WhiteElo "2156"]
[BlackElo "2377"]
[Annotator "NA"]
[PlyCount "119"]
[EventDate "2018.09.05"]
[EventType "swiss"]
[EventCountry "TUR"]
[SourceTitle "playchess.com"]
[Source "ChessBase"]
[SourceQuality "1"]
[TimeControl "40/5400+30:1800+30"]

1. d4 {[%emt 0:00:30]} f5 {[%emt 0:05:30]} 2. Bg5 {[%emt 0:00:00]} Nf6 {[%emt 0:00:30]} 3. Bxf6 {[%emt 0:03:00]} exf6 {[%emt 0:00:00]} 4. e3 {[%emt 0:00:30]} d5 {[%emt 0:03:00]} 5. c4 {[%emt 0:00:30]} c6 {[%emt 0:07:30]} 6. Nc3 {[%emt 0:01:30] A80: Holländische Verteidigung} (6. Qb3 dxc4 7. Bxc4 Bd6 8. Ne2 Qe7 9. Nbc3 Nd7 10. Be6 Nb6 11. Bxc8 Rxc8 12. O-O-O Qf7 13. Qc2 g6 {1-0 (39) Ali Marandi,C (2479)-Gelashvili,T (2563) Saint Louis 2017}) 6... Be6 {[%emt 0:00:30]} 7. Qb3 {[%emt 0:01:30]} Qd7 {[%emt 0:00:30]} 8. g3 $146 {[%emt 0:01:30]} ({Vorgänger:} 8. cxd5 Bxd5 9. Nxd5 cxd5 10. Bb5 Nc6 11. Rc1 Bb4+ 12. Kf1 Be7 13. Ne2 O-O {1-0 (50) Gutierrez Clares,J (2254)-Serrano Aspa,X (2183) Barcelona 2015}) 8... dxc4 {[%emt 0:05:30]} 9. Bxc4 {[%emt 0:00:30]} Bxc4 {[%emt 0:00:00]} 10. Qxc4 {[%emt 0:00:00]} Na6 {[%emt 0:02:00]} 11. h4 {[%emt 0:10:00]} Nc7 {[%emt 0:10:30]} 12. Nh3 {[%emt 0:02:30]} Bd6 {[%emt 0:01:30]} 13. O-O-O {[%emt 0:03:30]} O-O-O {[%emt 0:01:30]} 14. Kb1 {[%emt 0:02:30]} Kb8 {[%emt 0:05:30]} 15. Nf4 {[%emt 0:05:30]} g5 {[%emt 0:11:30]} 16. Nd3 {[%emt 0:00:30]} Qe8 {[%emt 0:03:30]} 17. hxg5 {[%emt 0:08:30]} fxg5 {[%emt 0:00:30]} 18. Rh6 {[%emt 0:00:30]} Qe7 {[%emt 0:16:30]} 19. Nc5 {[%emt 0:03:30]} b5 {[%emt 0:12:20]} 20. Qb4 {[%emt 0:00:30]} Ka8 {[%emt 0:01:33]} 21. Qa3 {[%emt 0:00:30]} Rb8 {[%emt 0:02:47]} 22. b4 {[%emt 0:00:00]} Rhf8 {[%emt 0:02:25]} 23. Rdh1 {[%emt 0:02:00]} Rf7 {[%emt 0:01:12]} 24. Qb3 {[%emt 0:00:00]} Rd8 {[%emt 0:01:22]} 25. a3 {[%emt 0:07:00]} Bxc5 {[%emt 0:02:24]} 26. bxc5 {[%emt 0:02:30]} Nd5 {[%emt 0:00:03]} 27. Nxd5 {[%emt 0:01:30]} Rxd5 {[%emt 0:00:03]} 28. a4 {[%emt 0:02:30]} a6 {[%emt 0:03:10]} 29. axb5 {[%emt 0:01:30]} axb5 {[%emt 0:00:33]} 30. Kb2 {[%emt 0:00:30]} Qb7 {[%emt 0:00:33]} 31. Re6 {[%emt 0:03:30]} Rf8 {[%emt 0:00:28]} 32. Rhh6 {[%emt 0:02:30]} Rc8 {[%emt 0:00:30]} 33. Rhf6 {[%emt 0:00:00]} Qd7 {[%emt 0:00:32]} 34. Qa3+ {[%emt 0:02:00]} Kb7 {[%emt 0:00:57]} 35. Qa5 {[%emt 0:00:30]} Qc7 {[%emt 0:00:00]} 36. Qxc7+ {[%emt 0:00:30]} Rxc7 {[%emt 0:00:04]} 37. Re5 {[%emt 0:02:30]} Rdd7 {[%emt 0:00:27]} 38. Rexf5 {[%emt 0:01:30]} Rg7 {[%emt 0:00:03]} 39. Rh6 {[%emt 0:01:30]} Rg8 {[%emt 0:01:23]} 40. g4 {[%emt 0:00:00]} Kb8 {[%emt 0:00:00]} 41. Rhf6 {[%emt 0:03:00]} Rgg7 {[%emt 0:02:41]} 42. Kc3 {[%emt 0:00:30]} Kb7 {[%emt 0:01:30]} 43. Kb4 {[%emt 0:01:30]} Rce7 {[%emt 0:01:30]} 44. Ka5 {[%emt 0:02:30]} Rc7 {[%emt 0:05:30]} 45. d5 {[%emt 0:00:30]} cxd5 {[%emt 0:06:50]} 46. Kxb5 {[%emt 0:00:30]} Rce7 {[%emt 0:00:23]} 47. Rxd5 {[%emt 0:00:30]} Re4 {[%emt 0:00:28]} 48. Rd4 {[%emt 0:01:30]} (48. Rd8 $142 Kc7 49. Ra8) 48... Re5 {[%emt 0:00:04]} 49. Rfd6 {[%emt 0:00:30]} Kc8 {[%emt 0:03:44]} 50. Rd8+ {[%emt 0:00:30]} Kc7 $18 {[%emt 0:00:30]} 51. Ra8 {[%emt 0:00:30]} Rg6 {[%emt 0:01:43]} 52. Ra7+ {[%emt 0:00:30]} Kc8 {[%emt 0:00:10]} 53. Rxh7 {[%emt 0:00:00]} Rf6 {[%emt 0:00:19]} 54. Rh2 {[%emt 0:06:00]} Rf7 {[%emt 0:06:48]} 55. Rd6 {[%emt 0:00:30]} Kc7 {[%emt 0:00:27]} 56. Rg6 {[%emt 0:00:30]} Kb7 {[%emt 0:00:34]} 57. Rb6+ {[%emt 0:00:30]} Kc7 {[%emt 0:00:15]} 58. Ka6 {[%emt 0:01:30]} Rf8 {[%emt 0:05:09]} 59. Rh7+ {[%emt 0:00:30]} Kc8 {[%emt 0:00:04]} 60. Ka7 {[%emt 0:00:00]} 1-0